Cogmind - Beta 13 @@@ ROGUE MODE // 2024.04.18 @ 06:34:47 Player: A Moose Result: Destroyed by X-57 Shotgunner with High-powered Shotgun Performance ------------- Evolutions (2) 1000 Regions Visited (6) 1200 Robots Destroyed (76) 380 Value Destroyed (2362) 2362 Prototype IDs (6) 120 Alien Tech Used (0) 0 Bonus (892) 892 TOTAL SCORE: 5954 Bonus ------- High Alert Combat Kills 192 Entered Garrisons 200 Used RIF Installer 500 Cogmind --------- Core Integrity 0/550 Matter 233/300 Energy 79/100 System Corruption 0% Temperature Cool (0) Movement Core (50) Location -8/Materials Parts ------- > --- POWER (1) -------- (None) > --- PROPULSION (2) --- (None) > --- UTILITY (5) ------ (None) > --- WEAPON (3) ------- (None) > --- INVENTORY (5) ---- Wheel Wheel Improved Heat Sink Relay Coupler [Grunt] (31) Peak State ------------ > --- POWER ------------ Heavy Ion Engine > --- PROPULSION ------- Wheel Armored Wheel > --- UTILITY ---------- Large Storage Unit Signal Interpreter Improved Terrain Scan Processor Medium Reflective Plating Medium Reflective Plating > --- WEAPON ----------- Spread Laser Heavy Laser Great Axe > --- INVENTORY -------- Heavy Ion Engine Light Nuclear Core Light Nuclear Core Wheel Wheel Improved Heat Sink Compact Matter Pod Weight Redist. System Improved Terrain Scanner Insulated Plating Relay Coupler [Grunt] Relay Coupler [Hunter] Minigun Plasma Cutter Great Axe [Rating: 33] Favorites ----------- Power Heavy Ion Engine Engine Heavy Ion Engine Power Core Light Nuclear Core Propulsion Armored Wheel Wheel Armored Wheel Utility Large Storage Unit Device Sensor Array Storage Large Storage Unit Processor Signal Interpreter Protection Insulated Plating Weapon Light Assault Rifle Energy Gun Heavy Laser Energy Cannon Beam Cannon Ballistic Gun Light Assault Rifle Ballistic Cannon Flak Cannon Launcher Rocket Launcher Special Weapon Plasma Cutter Slashing Weapon Great Axe Build | -11 -10 -10 -9 -8 -8 -8 ------- Run | Yrd Mat Min Mat Mat Gar Mat Slots Evolved 4 | . . . 2 2 . . Power . | . . . . . . . Propulsion . | . . . . . . . Utility 3 | . . . 2 1 . . Weapon 1 | . . . . 1 . . Parts Attached 70 | 6 . 1 30 6 17 10 Power 5 | 1 . . 2 1 . 1 Engine 4 | 1 . . 2 1 . . Core 1 | . . . . . . 1 Reactor . | . . . . . . . Propulsion 10 | 2 . 1 6 . . 1 Treads . | . . . . . . . Leg . | . . . . . . . Wheel 10 | 2 . 1 6 . . 1 Hover . | . . . . . . . Flight . | . . . . . . . Utility 22 | 1 . . 9 2 5 5 Device 4 | . . . 2 . 1 1 Storage 2 | 1 . . 1 . . . Processor 2 | . . . 1 1 . . Hackware . | . . . . . . . Protection 14 | . . . 5 1 4 4 Artifact . | . . . . . . . Weapon 33 | 2 . . 13 3 12 3 Energy Gun 8 | . . . 1 1 5 1 Energy Cannon 2 | . . . 2 . . . Ballistic Gun 10 | 2 . . 6 . 1 1 Ballistic Cannon 3 | . . . . 2 1 . Launcher 6 | . . . 3 . 3 . Special Weapon 1 | . . . . . 1 . Impact Weapon . | . . . . . . . Slashing Weapon 3 | . . . 1 . 1 1 Piercing Weapon . | . . . . . . . Special Melee Weapon . | . . . . . . . Unidentified Prototypes 2 | . . . 2 . . . Parts Lost 28 | . . . 11 . 4 13 Power 3 | . . . 1 . . 2 Propulsion 7 | . . . 4 . 1 2 Utility 8 | . . . 2 . 2 4 Weapon 10 | . . . 4 . 1 5 Highest Loss Streak 13 | . . . 6 . 2 13 To Critical Strikes . | . . . . . . . Average Slot Usage (%) 91 | . 85 85 89 100 95 80 Engine 9 | . 14 14 10 9 9 6 Wheel 19 | . 28 28 21 18 15 11 Device 4 | . . . 6 9 2 1 Storage 10 | . 14 14 11 9 9 8 Processor 12 | . . . 8 16 18 16 Protection 10 | . . . 9 10 14 10 Energy Gun 5 | . . . . 7 9 14 Ballistic Gun 11 | . 28 28 16 . 7 2 Ballistic Cannon 3 | . . . . 9 6 . Launcher 2 | . . . 2 10 2 . Naked Turns 4 | . . . . . . 4 Heaviest Build 54 | 12 12 12 46 53 54 53 Greatest Support 24 | 20 20 20 24 24 24 22 Greatest Overweight (x) 9 | . . . 3 2 4 9 Average Overweight (x) 1 | . . . . 2 2 2 Largest Inventory Capacity 15 | 8 8 8 15 15 15 15 Average Capacity 13 | 7 8 8 13 15 15 14 Most Carried 15 | 8 8 8 15 15 15 15 Average Carried 12 | 3 8 7 12 14 14 14 Final Capacity 15 | 8 8 8 15 15 15 5 Final Carried 15 | 8 8 8 15 15 15 4 Class Distribution -------------------- 49% | Mutant 32% | Tank 10% | Scavenger-Mutant 7% | Skirmisher Dominant Class ---------------- Mutant | -10/Materials Mutant | -10/Mines Mutant | -9/Materials Skirmisher | -8/Materials Tank | -8/Garrison Mutant | -8/Materials Resources | -11 -10 -10 -9 -8 -8 -8 ----------- Run | Yrd Mat Min Mat Mat Gar Mat Matter Collected 1873 | 262 . 56 670 100 727 58 Remotely . | . . . . . . . Salvage Created 2529 | 137 . 233 1278 18 805 58 Parts 139 | 6 . 15 74 . 40 4 Haulers Intercepted 4 | . . . 4 . . . Recyclers Shooed 1 | . . . 1 . . . Parts Field Recycled . | . . . . . . . Retrieved Matter . | . . . . . . . Parts Self-Destructed . | . . . . . . . Prevented . | . . . . . . . Kills | -11 -10 -10 -9 -8 -8 -8 ------- Run | Yrd Mat Min Mat Mat Gar Mat Combat Hostiles Destroyed 61 | . . 5 29 . 26 1 Melee 2 | . . . 1 . . 1 Guns 29 | . . 5 16 . 8 . Cannons 13 | . . . 5 . 8 . AOE 16 | . . . 7 . 9 . Classes Destroyed 13 | 2 . 3 6 1 1 . Worker 2 | . . 1 1 . . . Builder 2 | . . . 2 . . . Tunneler 2 | 2 . . . . . . Hauler 4 | . . . 4 . . . Recycler 2 | 1 . 1 . . . . Operator 1 | . . . . 1 . . Watcher 2 | . . . 2 . . . Swarmer 17 | . . 3 6 . 8 . Grunt 29 | . . 2 14 . 13 . Brawler 2 | . . . 1 . 1 . Duelist 2 | . . . 1 . 1 . Sentry 10 | . . . 7 . 2 1 Hunter 1 | . . . . . 1 . Best Kill Streak 8 | 2 . 5 8 1 6 1 Combat Bots Only 7 | . . 3 7 . 6 1 Max Kills in Single Turn 3 | 1 . 2 2 1 3 1 Gunslinging 1 | . . 1 . . . . Exploded 3 | . . . 2 . 3 . Melee 1 | . . . 1 . . 1 Uniques/NPCs Destroyed . | . . . . . . . Combat | -11 -10 -10 -9 -8 -8 -8 -------- Run | Yrd Mat Min Mat Mat Gar Mat Hostile Shots Fired 408 | . . 24 147 . 104 133 Missed 104 | . . 9 37 . 28 30 Damage Taken 4539 | . . 171 1469 9 1123 1767 Core 957 | . . 49 353 . 78 477 Absorbed by Shields . | . . . . . . . Redirected to Shielding 6 | . . . 6 . . . Ignored by Resistances 14 | . . . . . 2 12 Core Remaining (%) 63 | 100 . 80 11 . . . Volleys Fired 183 | 12 . 17 85 3 57 9 Largest 3 | 2 . 2 2 2 3 3 Hottest 162 | 40 . 40 89 100 162 159 Shots Fired 379 | 24 . 34 163 5 135 18 Gun 290 | 24 . 34 133 2 79 18 Cannon 64 | . . . 22 2 40 . Launcher 23 | . . . 8 1 14 . Special 2 | . . . . . 2 . Kinetic 274 | 24 . 34 129 2 76 9 Thermal 82 | . . . 26 2 45 9 Explosive 13 | . . . 7 1 5 . Electromagnetic 10 | . . . 1 . 9 . Robot Hit Streak 12 | 5 . 6 12 2 8 10 Robot Miss Streak 9 | 2 . 7 4 2 9 3 Penetration Max 1 | . . . . . 1 . Secondary Targets 3 | . . 2 1 . . . Max Gunslinging Chain 1 | . . 1 1 . . . Shots Hit Robots 236 | 16 . 16 109 2 72 21 Core Hits 171 | 6 . 13 66 2 78 6 Critical Kills 3 | . . 1 2 . . . Critical Parts Destroyed . | . . . . . . . Critical Strikes 4 | . . 1 2 . 1 . Burn 1 | . . . . . 1 . Destroy 3 | . . 1 2 . . . Melee Attacks 14 | . . . 4 . 3 7 Impact . | . . . . . . . Slashing 14 | . . . 4 . 3 7 Piercing . | . . . . . . . Sneak Attacks 1 | . . . 1 . . . Combat Hostiles . | . . . . . . . Follow-up Attacks . | . . . . . . . Damage Inflicted 4566 | 134 . 160 1847 21 1907 497 Guns 2303 | 134 . 160 1094 14 629 272 Cannons 850 | . . . 229 7 614 . Explosions 1035 | . . . 371 . 664 . Melee 378 | . . . 153 . . 225 Ramming . | . . . . . . . Kinetic 2477 | 134 . 160 1064 7 976 136 Thermal 676 | . . . 259 14 267 136 Explosive 632 | . . . 357 . 275 . Electromagnetic 403 | . . . 14 . 389 . Impact . | . . . . . . . Slashing 378 | . . . 153 . . 225 Piercing . | . . . . . . . Highest Corruption . | . . . . . . . Average Corruption . | . . . . . . . Corruption Purged . | . . . . . . . Corruption Blocked . | . . . . . . . Overload Shots . | . . . . . . . Overflow Damage . | . . . . . . . Projectiles . | . . . . . . . Explosions . | . . . . . . . Melee . | . . . . . . . Knockbacks 15 | . . . . . 15 . Impact . | . . . . . . . Kinetic 15 | . . . . . 15 . Secondary . | . . . . . . . Self-Inflicted Damage 104 | . . . . 11 93 . Shots 5 | . . . . 1 4 . Rammed . | . . . . . . . Targets Rammed . | . . . . . . . Kicked . | . . . . . . . Crushed . | . . . . . . . Highest Temperature 359 | . . 19 317 33 359 243 Average Temperature 102 | . . 10 70 19 126 139 Received Heat Transfer 1194 | . . 66 525 . 387 216 Effects 3 | . . . 1 . . 2 Energy Bleed 2 | . . . 1 . . 1 Interference 1 | . . . . . . 1 Siege Activations . | . . . . . . . Robots Corrupted 1 | . . . . . 1 . Combat Hostiles 1 | . . . . . 1 . Parts Fried 3 | . . . . . 3 . Impact Corruptions . | . . . . . . . Robots Melted . | . . . . . . . Combat Hostiles . | . . . . . . . Parts Melted 3 | . . . 2 . 1 . Heat Transferred 1506 | . . . 555 37 662 252 Parts Sabotaged . | . . . . . . . Parts Stolen . | . . . . . . . Parts Stripped . | . . . . . . . Power Chain Reactions . | . . . . . . . Alert | -11 -10 -10 -9 -8 -8 -8 ------- Run | Yrd Mat Min Mat Mat Gar Mat Peak Influence 871 | 15 14 135 468 245 871 454 Initial 424 | . 9 5 52 197 159 424 Average 351 | 5 13 92 271 215 573 412 Maximum Alert Level 3 | . . . 2 1 3 2 Low Security (%) 23 | 100 100 100 20 6 8 . Level 1 40 | . . . 59 93 20 25 Level 2 25 | . . . 19 . 40 74 Level 3 10 | . . . . . 31 . Level 4 . | . . . . . . . Level 5 . | . . . . . . . High Security . | . . . . . . . Max Security . | . . . . . . . Squads Dispatched 7 | . . . 4 . . 3 Investigation 2 | . . . 1 . . 1 Extermination . | . . . . . . . Reinforcement 5 | . . . 3 . . 2 Assault . | . . . . . . . Garrison . | . . . . . . . Intercept . | . . . . . . . Searches Triggered . | . . . . . . . Construction Impeded . | . . . . . . . Haulers Reinforced . | . . . . . . . Active Scanning Responses . | . . . . . . . Cargo Convoy Interrupts . | . . . . . . . Stealth | -11 -10 -10 -9 -8 -8 -8 --------- Run | Yrd Mat Min Mat Mat Gar Mat Distress Signals 5 | . . . 5 . . . Communications Jammed . | . . . . . . . Distress Signals . | . . . . . . . Times Spotted 82 | . . 5 37 1 31 8 Peak Tracking Total 8 | . . 3 8 1 6 7 Tactical Retreats . | . . . . . . . Traps | -11 -10 -10 -9 -8 -8 -8 ------- Run | Yrd Mat Min Mat Mat Gar Mat Traps Triggered 9 | . . . 1 . 7 1 Indirectly 2 | . . . . . 2 . Trap Hack Attempts . | . . . . . . . Triggered . | . . . . . . . Disarmed . | . . . . . . . Reprogrammed . | . . . . . . . Reused 2 | . . . 2 . . . Traps Extracted . | . . . . . . . Installed 2 | . . . 2 . . . Triggered 2 | . . . 2 . . . Most Traps Carried 2 | . . 2 2 . . . Machines | -11 -10 -10 -9 -8 -8 -8 ---------- Run | Yrd Mat Min Mat Mat Gar Mat Machines Disabled 5 | . . . 2 2 1 . Max in Single Turn 2 | . . . 1 2 1 . Garrison Relay 1 | . . . . . 1 . Machines Repaired . | . . . . . . . Machines Dismantled . | . . . . . . . Machines Sabotaged . | . . . . . . . Overloaded Fab Kills . | . . . . . . . Hacking | -11 -10 -10 -9 -8 -8 -8 --------- Run | Yrd Mat Min Mat Mat Gar Mat Machines Accessed 15 | . 1 . 7 4 3 . Terminals 14 | . 1 . 7 3 3 . Fabricators . | . . . . . . . Repair Stations . | . . . . . . . Recycling Units . | . . . . . . . Scanalyzers . | . . . . . . . Garrison Access 1 | . . . . 1 . . Total Hacks 40 | . 3 . 19 12 6 . Successful 14 | . 2 . 6 4 2 . Failed 26 | . 1 . 13 8 4 . Catastrophic 5 | . . . 4 1 . . Database Lockouts . | . . . . . . . Manual . | . . . . . . . Terminals 39 | . 3 . 19 11 6 . Fabricators . | . . . . . . . Repair Stations . | . . . . . . . Recycling Units . | . . . . . . . Scanalyzers . | . . . . . . . Garrison Access 1 | . . . . 1 . . Terminal Hacks 13 | . 2 . 6 3 2 . Robot Analysis 1 | . 1 . . . . . Prototype ID Bank 2 | . . . 1 1 . . Emergency Access Points 3 | . . . 2 . 1 . Alert Level 1 | . . . 1 . . . Unreport Threat 1 | . . . 1 . . . Hauler Manifests 2 | . 1 . . 1 . . Zone Layout 2 | . . . 1 1 . . Patrol Navigation 1 | . . . . . 1 . Fabricator Hacks . | . . . . . . . Repair Station Hacks . | . . . . . . . Recycling Unit Hacks . | . . . . . . . Scanalyzer . | . . . . . . . Garrison Access Hacks 1 | . . . . 1 . . Unlock Access 1 | . . . . 1 . . Unauthorized Hacks . | . . . . . . . Terminals . | . . . . . . . Fabricators . | . . . . . . . Repair Stations . | . . . . . . . Recycling Units . | . . . . . . . Scanalyzers . | . . . . . . . Garrison Access . | . . . . . . . Data Cores Recovered 1 | . . . . 1 . . Used 1 | . . . . 1 . . Hacking Detections 14 | . 1 . 7 4 2 . Full Trace Events 2 | . . . . 1 1 . Feedback Events . | . . . . . . . Feedback Blocked . | . . . . . . . Robot Schematics Acquired . | . . . . . . . Robots Built . | . . . . . . . Authchips . | . . . . . . . Time . | . . . . . . . Total Robot Build Rating . | . . . . . . . Part Schematics Acquired . | . . . . . . . Parts Built . | . . . . . . . Authchips . | . . . . . . . Time . | . . . . . . . Total Part Build Rating . | . . . . . . . Parts Repaired . | . . . . . . . Time . | . . . . . . . Parts Recycled . | . . . . . . . Recycled Matter . | . . . . . . . Retrieved Matter . | . . . . . . . Retrieved Components . | . . . . . . . Parts Scanalyzed . | . . . . . . . Part Schematics Acquired . | . . . . . . . Parts Damaged . | . . . . . . . Bothacking | -11 -10 -10 -9 -8 -8 -8 ------------ Run | Yrd Mat Min Mat Mat Gar Mat Used RIF Installer 1 | . . . . . 1 . Robots Hacked . | . . . . . . . Non-combat . | . . . . . . . Combat . | . . . . . . . Robot Hacks Applied . | . . . . . . . Relay Couplers Released 3 | . . . . . 3 . Machine Destruction 3 | . . . . . 3 . Fabnet Peak Effective % . | . . . . . . . Robots Rewired . | . . . . . . . Allies Hacked . | . . . . . . . Hacks Repelled . | . . . . . . . Allies | -11 -10 -10 -9 -8 -8 -8 -------- Run | Yrd Mat Min Mat Mat Gar Mat Total Allies . | . . . . . . . Largest Group . | . . . . . . . Highest-Rated Group . | . . . . . . . Highest-Rated Ally . | . . . . . . . Total Orders . | . . . . . . . Ally Attacks . | . . . . . . . Total Damage . | . . . . . . . Kills . | . . . . . . . Allies Corrupted . | . . . . . . . Allies Melted . | . . . . . . . Intel | -11 -10 -10 -9 -8 -8 -8 ------- Run | Yrd Mat Min Mat Mat Gar Mat Robot Analysis Total 1 | . 1 . . . . . Derelict Logs Recovered . | . . . . . . . Drone Launches . | . . . . . . . Drone Recoveries . | . . . . . . . Exploration | -11 -10 -10 -9 -8 -8 -8 ------------- Run | Yrd Mat Min Mat Mat Gar Mat Turns Passed 2669 | 114 45 149 1081 230 916 134 Spaces Moved 1820 | 81 56 119 771 172 557 64 Core 18 | 8 . . . . . 10 Treads . | . . . . . . . Legs . | . . . . . . . Wheels 1802 | 73 56 119 771 172 557 54 Hover . | . . . . . . . Flight . | . . . . . . . Fastest Speed 50 | 50 80 80 80 120 105 50 Average Speed 103 | 77 80 80 93 120 119 121 Slowest Speed 500 | 80 80 80 125 120 150 500 Overloaded Moves . | . . . . . . . Propulsion Burnouts . | . . . . . . . Robots Hopped . | . . . . . . . Cave-ins Triggered . | . . . . . . . Exploration Rate (%) 31 | 3 17 41 73 18 60 10 Regions Visited 6 Branch Regions 1 Pre-discovered Areas . | . . . . . . . Known Exits Taken 2 | . . . 1 1 . . Unknown Exits Taken 3 | 1 1 1 . . . . Scrap Searched . | . . . . . . . Spaces Dug 8 | . . . . 8 . . Terrain Destroyed 94 | . . . 55 8 31 . Melee . | . . . . . . . Projectile 1 | . . . . . 1 . AOE 93 | . . . 55 8 30 . Terrain Rammed . | . . . . . . . Walls Destroyed . | . . . . . . . Machines Disabled . | . . . . . . . Actions | -11 -10 -10 -9 -8 -8 -8 --------- Run | Yrd Mat Min Mat Mat Gar Mat Total 2263 | 113 55 147 977 191 684 96 Wait 46 | 1 . 1 35 . 9 . Move 1813 | 80 55 118 770 171 555 64 Hop . | . . . . . . . Pick Up 70 | 14 . 5 35 6 5 5 Fast Attach 4 | . . . 2 . 2 . Attach 36 | 6 . . 17 2 4 7 Detach 1 | . . . . . 1 . Swap 30 | . . 1 11 4 11 3 Drop 32 | . . 5 16 5 5 1 Fire 183 | 12 . 17 85 3 57 9 Melee 14 | . . . 4 . 3 7 Ram . | . . . . . . . Kick . | . . . . . . . Crush . | . . . . . . . Escape Stasis 32 | . . . . . 32 . Rewire . | . . . . . . . Trap 2 | . . . 2 . . . Miscellaneous . | . . . . . . . Route ------- -11/Scrapyard -10/Materials -10/Mines (discovered 2 exits: *Mat x2) -9/Materials (discovered 3 exits: *Mat x3) -8/Materials -8/Garrison (discovered 3 exits: *Mat x3) -8/Materials History --------- Turn | Location | Event 10 | -11/Scrapyard | Discovered new exit (range 16) 115 | -11/Scrapyard | Entered Materials 149 | -10/Materials | Discovered new exit (range 7) 160 | -10/Materials | Entered Mines 216 | -10/Mines | Discovered new exit (range 10) 267 | -10/Mines | Found a hidden stash of uninstalled traps 283 | -10/Mines | Discovered new exit (range 14) 290 | -10/Mines | Received a Rocket Launcher from a helpful Derelict 309 | -10/Mines | Entered Materials 309 | -9/Materials | Evolved 2 slots: Utility x2 312 | -9/Materials | Build established: Mutant 688 | -9/Materials | Discovered new exit (range 13) 700 | -9/Materials | Identified exit to Materials 990 | -9/Materials | Destroyed 7 combat bots 1102 | -9/Materials | Discovered exit to Materials (range 8) 1196 | -9/Materials | Core integrity fell below 50% 1222 | -9/Materials | Core integrity fell below 20% 1248 | -9/Materials | Lost 6 parts (1p1n4w) 1329 | -9/Materials | Discovered exit to Materials (range 13) 1390 | -9/Materials | Entered another Materials area 1390 | -8/Materials | Evolved 2 slots: Utility x1, Weapon x1 1607 | -8/Materials | Identified exit to Garrison 1620 | -8/Materials | Entered Garrison 1882 | -8/Garrison | Triggered checkpoint 1900 | -8/Garrison | Discovered new exit (range 5) 1903 | -8/Garrison | Build established: Tank 2034 | -8/Garrison | Triggered checkpoint 2112 | -8/Garrison | Installed Relay Interface Framework 2146 | -8/Garrison | Triggered checkpoint 2155 | -8/Garrison | Discovered new exit (range 12) 2251 | -8/Garrison | Garrison Relay disabled 2312 | -8/Garrison | Triggered checkpoint 2478 | -8/Garrison | Spotted B-75 Beast 2481 | -8/Garrison | Discovered new exit (range 13) 2499 | -8/Garrison | Identified exit to Materials 2536 | -8/Garrison | Entered Materials 2648 | -8/Materials | Core integrity fell below 50% 2665 | -8/Materials | Released all parts (4) 2667 | -8/Materials | Core integrity fell below 20% 2670 | -8/Materials | Destroyed by X-57 Shotgunner with High-powered Shotgun Last Messages --------------- Field Laser destroyed. Critical hit (Burn: +37). Acquired Hrd. Light Armor Plating. Lgt. Nuclear Core destroyed. R-06 Scavenger collects Lgt. Treads. Arm. Wheel destroyed. Hrd. Light Armor Plating destroyed. U-05 Engineer builds a Wall. R-06 Scavenger collects Lgt. Armor Plating. Minigun destroyed. Released Lrg. Storage Unit. Released Signal Interpreter. Released Imp. Terrain Scan Processor. Released Hrd. Light Armor Plating. Critical hit (Burn: +37). G-47 Trooper destroyed. R-06 Scavenger collects Hrd. Light Armor Plating. Great Axe destroyed. Knocked back. Map ----- +----------------------------------------------------+ | ??##############+######+####???????????????? | | ???# # !#??? ??????????????????? | | ?#?# # #?"????????????????????? | | ???# ! # """" # ""???????????????????? | | ##?# !] # """" #??""?"????????????????? | | ???#########+# """" #?"???"????????????????? | | ????# ! # + #???"??????????????????? | | ???## # ########??????????????????????? | | ?#??# = + + #?"????????????????????? | | ?#### # # """# ??? ???#?????????????? | | ???## !] # # """#??????????????????????? | | ???## ![ ?# # * """#??????????????????????? | | ????######## # #?##?#?????????????????? | | # ]! + # =#???###??#?????????????? | | ?#]! "T" # ########?#?##?????????????????? | | ?#]! = """ #%#?#########???#???????????????? | | ???? # # ###???????????????????? | | #???######## # == !#?????????????????????? | | ???#########%+ =/ #?????#???????????????? | | ??#?# """ # #########?????????????????????? | | ???## """ #!# ""*!###???#????????????????? | | ????# """ "=# ""S%!/#?????????????????????? | | ??### %# #% gH*|####???#???????????????? | | ??#?# *# +% %xx!#??????????????????????? | | ????# # # rg!*#??????????????????????? | | ????######## # Y!@##?????????????????????? | | ??????????##%########??????????????????????? | | ???????????# #?##????#?#???????????????????? | | ??????????## #???#?????????????????????????? | | ???????????# #?#??#??#?????????????????????? | | ???????????# #?????????????????????????????? | | ??????????? [ ?#???????????????????????????? | | ???????? ?? ?????????????????????????????? | | ??????????? ?????????????????????????????? | | ??????????? ?????????????????????????????? | | ??????????? ?????????????????????????????? | | ??????????? ?????????????????????????????? | | ??????????? ?????????????????????????????? | | ??????????? ?????????????????????????????? | | ??????????? ?????????????????????????????? | | ???????????????????????????????????????????? | | ???????????????????????????????????????????? | | ???????????????????????????????????????????? | | ???????????????????????????????????????????? | | ???????????????????????????????????????????? | | ???????????????????????????????????????????? | | ???????????????????????????????????????????? | | ???????????????????????????????????????????? | | ???????????????????????????????????????????? | | ???????????????????????????????????????????? | +----------------------------------------------------+ Best States ------------- Heat Dissipation 45 Energy Generation 14 Energy Capacity 280 Matter Stores 300 Matter Capacity 300 Sight Range 16 Robot Scan Range 14 Terrain Scan Range 16 Terrain Scan Density 110 Armor Coverage 450 Resistance: TH 15 Resistance: EM 15 Core Shielding 20 Evasion (%) 50 Item Schematics ----------------- None Robot Schematics ------------------ None Fabricated ------------ Nothing Alien Tech Used ----------------- None Achievements -------------- None Challenges ------------ None Game ------ Seed HoverBurstAirjet Manual? 0 Play Time 00:41:18 Cumulative 49.8 hours Start 2024.04.18 @ 05:46:02 End 2024.04.18 @ 06:34:47 Sessions 2 Manual Loads 0 Difficulty Rogue Special Mode None Game No. 57 Rogue 48 Adventurer 9 Explorer 0 Win Type - Total 0 Types 0/0/0/0/0/0/0/0/0 Lore% 31 Gallery% 46 Achievement% 37 Wizard Run 0 Options --------- Layout 1 ASCII 0 Keyboard 0 Movement Numpad Keybinds 0 Fullscreen 1 Font 24/Smallcaps Map View 50x35 Zoom Use 0% Tactical HUD 0 Map Filters NONE Filters NONE Steam 1 RUN: 0468d4ca-0335-4f15-a1de-fbe7f06bb74d